bitfinex-derivatives/quotes_ETHF0:USTF0_20260118
["timestamp","ask_amount","ask_price","bid_price","bid_amount"]
[1768697297687,0.28459655,3307.3,3305.7,0.13925217]
[1768697297883,1.70508133,3307.6,3305.7,0.13925217]
[1768697298084,1.3514024,3307.5,3305.7,0.13925217]
[1768697298287,1.3514024,3307.4,3305.7,0.13925217]
[1768697298484,0.28456838,3307.3,3305.7,0.13925217]
[1768697298682,1.70508133,3307.6,3305.7,0.13925217]
[1768697298880,1.35127225,3307.5,3305.7,0.13925217]
[1768697299085,1.35127225,3307.4,3305.7,0.13925217]
[1768697299390,0.28454017,3307.3,3305.7,0.13925217]
[1768697299573,1.837317,3307.6,3305.7,0.13925217]
[1768697299778,1.35115051,3307.5,3305.7,0.13925217]
[1768697299978,1.35115051,3307.4,3305.7,0.13925217]
[1768697300176,0.2845132,3307.3,3305.7,0.13925217]
[1768697300390,1.837317,3307.6,3305.9,1.11625647]
[1768697300592,1.35104685,3307.5,3305.9,1.11625647]
[1768697300790,0.28449187,3307.4,3305.9,1.11625647]
[1768697301085,0.28449187,3307.3,3305.9,1.11625647]
[1768697301280,1.837317,3307.6,3305.9,1.11625647]
[1768697301482,1.35091829,3307.5,3305.9,1.11625647]
[1768697301683,0.28446272,3307.4,3305.9,1.11625647]
[1768697301885,1.837317,3307.6,3305.9,1.11625647]
[1768697302085,1.35091841,3307.5,3306.0,0.1331055]
[1768697302290,0.28446265,3307.4,3306.0,0.1331055]
[1768697302590,1.837317,3307.6,3306.0,0.1331055]
[1768697302791,1.35080175,3307.5,3306.0,0.1331055]
[1768697302991,0.28443591,3307.4,3306.0,0.1331055]
[1768697303179,0.135317,3307.6,3306.0,0.1331055]
[1768697303495,0.28442646,3307.5,3306.0,0.1331055]
[1768697303788,0.00308133,3307.6,3306.0,0.1331055]
[1768697303993,0.28443664,3307.5,3306.0,0.1331055]
[1768697304294,0.00308133,3307.6,3306.0,0.1331055]
[1768697304497,0.28441426,3307.5,3306.0,0.1331055]
[1768697304796,0.00308133,3307.6,3306.0,0.1331055]
[1768697304991,0.28441427,3307.5,3306.0,0.1331055]
[1768697305294,0.00308133,3307.6,3306.0,0.1331055]
[1768697305495,0.28439514,3307.5,3306.0,0.1331055]
[1768697305695,0.00308133,3307.6,3306.0,0.1331055]
[1768697305902,0.28439632,3307.5,3306.0,0.1331055]
[1768697306087,0.00308133,3307.6,3306.0,0.1331055]
[1768697306285,0.28439468,3307.5,3306.0,0.1331055]
[1768697306485,0.00308133,3307.6,3306.0,0.1331055]
[1768697306692,0.28438327,3307.5,3306.0,0.1331055]
[1768697306992,0.00308133,3307.6,3306.0,0.1331055]
[1768697307292,0.28438329,3307.5,3306.0,0.1331055]
[1768697307478,0.00308133,3307.6,3306.0,0.1331055]
[1768697307679,0.28437455,3307.5,3306.0,0.1331055]
[1768697307895,0.00308133,3307.6,3306.0,0.1331055]
[1768697308097,0.28437459,3307.5,3306.0,0.1331055]
[1768697308392,0.00308133,3307.6,3306.0,0.1331055]
[1768697308593,0.28436985,3307.5,3306.0,0.1331055]
[1768697308786,0.00308133,3307.6,3306.0,0.1331055]
[1768697309085,0.28436986,3307.5,3306.0,0.1331055]
[1768697309286,0.00308133,3307.6,3306.0,0.1331055]
[1768697309486,0.28437116,3307.5,3306.0,0.1331055]
[1768697309688,0.00308133,3307.6,3306.0,0.1331055]
[1768697309900,0.28437116,3307.5,3306.0,0.1331055]
[1768697310089,0.00308133,3307.6,3306.0,0.1331055]
[1768697310285,0.28437883,3307.5,3306.0,0.1331055]
[1768697310596,0.00308133,3307.6,3306.0,0.1331055]
[1768697310791,0.28438076,3307.5,3306.0,0.1331055]
[1768697310992,0.00308133,3307.6,3306.0,0.1331055]
[1768697311291,0.2843771,3307.5,3306.0,0.1331055]
[1768697311493,0.00308133,3307.6,3306.0,0.1331055]
[1768697311799,0.28438499,3307.5,3306.0,0.1331055]
[1768697311997,0.28439071,3307.4,3306.0,0.1331055]
[1768697312201,0.00308133,3307.6,3306.0,0.1331055]
[1768697312399,0.2844009,3307.5,3306.0,0.1331055]
[1768697312597,0.2844009,3307.4,3306.0,0.1331055]
[1768697312799,0.13818359,3307.6,3305.6,0.2844055]
[1768697312999,0.13510226,3307.3,3305.6,0.2844055]
[1768697314903,0.13510226,3307.3,3305.6,0.1331055]
[1768697314904,0.41927919,3307.2,3305.6,0.1331055]
[1768697315102,0.28463844,3307.1,3305.6,0.1331055]
[1768697315294,0.13483813,3307.2,3305.6,0.1331055]
[1768697315499,0.28463855,3307.1,3305.6,0.1331055]
[1768697315696,0.13483813,3307.2,3305.6,0.1331055]
[1768697315897,0.2846388,3307.1,3305.6,0.1331055]
[1768697316193,0.28498967,3307.0,3305.6,0.1331055]
[1768697316393,0.13483813,3307.2,3305.6,0.1331055]
[1768697316594,1.33676984,3307.1,3305.6,0.1331055]
[1768697316794,0.28498727,3307.0,3305.6,0.1331055]
[1768697316995,0.13483813,3307.2,3305.6,0.1331055]
[1768697317305,1.33676956,3307.1,3305.6,0.1331055]
[1768697317605,0.28498736,3307.0,3305.6,0.1331055]
[1768697317904,0.28498736,3306.9,3305.6,0.1331055]
[1768697318205,0.13483813,3307.2,3305.6,0.1331055]
[1768697318406,1.33775899,3307.1,3305.6,0.1331055]
[1768697318607,0.28525621,3307.0,3305.6,0.1331055]
[1768697318797,0.28525621,3306.9,3305.6,0.1331055]
[1768697318998,0.28525621,3306.8,3305.6,0.1331055]
[1768697319203,0.13483813,3307.2,3305.6,0.1331055]
[1768697319496,1.33791063,3307.1,3305.6,0.1331055]
[1768697319699,1.33791063,3307.0,3305.6,0.1331055]
[1768697319897,0.28529022,3306.9,3305.6,0.1331055]
[1768697320100,0.28529022,3306.8,3305.6,0.1331055]
[1768697320400,0.13483813,3307.2,3305.6,0.1331055]
[1768697320599,1.33816481,3307.1,3305.6,0.1331055]
[1768697320802,1.33816481,3307.0,3305.6,0.1331055]
[1768697321102,0.28532602,3306.9,3305.6,0.1331055]
[1768697321299,0.28532602,3306.8,3305.6,0.1331055]
[1768697321508,0.13483813,3307.2,3305.6,0.1331055]
[1768697321697,0.2853364,3307.1,3305.6,0.1331055]
[1768697322007,0.2853364,3307.0,3305.6,0.1331055]
[1768697322303,0.2853364,3306.9,3305.6,0.1331055]
[1768697322606,0.13483813,3307.2,3305.6,0.1331055]
[1768697322806,0.28534167,3307.1,3305.6,0.1331055]
[1768697323001,0.28534167,3307.0,3305.6,0.1331055]
[1768697323203,0.28534167,3306.9,3305.6,0.1331055]
[1768697323401,0.13483813,3307.2,3305.6,0.1331055]
[1768697323602,0.28529132,3307.1,3305.6,0.1331055]
[1768697323802,0.28529132,3307.0,3305.6,0.1331055]
[1768697324104,0.28529132,3306.9,3305.6,0.1331055]
[1768697324414,0.13483813,3307.2,3305.6,0.1331055]
[1768697324598,0.28529526,3307.1,3305.6,0.1331055]
[1768697324801,0.28529526,3307.0,3305.6,0.1331055]
[1768697325003,0.28529526,3306.9,3305.6,0.1331055]
[1768697325204,0.13483813,3307.2,3305.6,0.1331055]
[1768697325417,0.28529086,3307.1,3305.6,0.1331055]
[1768697325602,0.28529086,3307.0,3305.6,0.1331055]
[1768697325903,0.28529086,3306.9,3305.6,0.1331055]
[1768697326111,0.13483813,3307.2,3305.6,0.1331055]
[1768697326307,1.33795387,3307.1,3305.6,0.1331055]
[1768697326609,0.2852847,3307.0,3305.6,0.1331055]
[1768697326808,0.2852847,3306.9,3305.6,0.1331055]
[1768697327008,0.13483813,3307.2,3305.6,0.1331055]
[1768697327305,1.33793564,3307.1,3305.6,0.1331055]
[1768697327493,0.28528633,3307.0,3305.6,0.1331055]
[1768697327696,0.28528633,3306.9,3305.6,0.1331055]
[1768697327899,0.13483813,3307.2,3305.6,0.1331055]
[1768697328101,1.33790668,3307.1,3305.6,0.1331055]
[1768697328300,0.28528035,3307.0,3305.6,0.1331055]
[1768697328497,0.28528035,3306.9,3305.6,0.1331055]
[1768697328801,0.13483813,3307.2,3305.6,0.1331055]
[1768697329003,1.33788116,3307.1,3305.6,0.1331055]
[1768697329199,0.28527476,3307.0,3305.6,0.1331055]
[1768697329416,0.28527476,3306.9,3305.6,0.1331055]
[1768697329605,1.701,3307.4,3305.6,0.1331055]
[1768697329805,1.33786382,3307.3,3305.6,0.1331055]
[1768697330011,1.33786382,3307.2,3305.6,0.1331055]
[1768697330212,0.28527025,3307.1,3305.6,0.1331055]
[1768697330412,0.28527025,3307.0,3305.6,0.1331055]
[1768697330613,0.28527025,3306.9,3305.6,0.1331055]
[1768697330814,1.701,3307.4,3305.6,0.1331055]
[1768697331003,1.33784649,3307.3,3305.6,0.1331055]
[1768697331204,1.33784649,3307.2,3305.6,0.1331055]
[1768697331497,0.28526669,3307.1,3305.6,0.1331055]
[1768697331705,0.28526669,3307.0,3305.6,0.1331055]
[1768697331906,0.28526669,3306.9,3305.6,0.1331055]
[1768697332197,1.701,3307.4,3305.6,0.1331055]
[1768697332398,1.3378196,3307.3,3305.6,0.1331055]
[1768697332602,1.3378196,3307.2,3305.6,0.1331055]
[1768697332805,0.28525917,3307.1,3305.6,0.1331055]
[1768697333010,0.28525917,3307.0,3305.6,0.1331055]
[1768697333214,0.28525917,3306.9,3305.6,0.1331055]
[1768697333410,1.701,3307.4,3305.6,0.1331055]
[1768697333611,1.33782778,3307.3,3305.6,0.1331055]
[1768697333913,1.33782778,3307.2,3305.6,0.1331055]
[1768697334109,0.28525786,3307.1,3305.6,0.1331055]
[1768697334309,0.28525786,3307.0,3305.6,0.1331055]
[1768697334513,0.28525786,3306.9,3305.6,0.1331055]
[1768697334711,1.701,3307.4,3305.6,0.1331055]
[1768697334912,1.33785603,3307.3,3305.6,0.1331055]
[1768697335114,1.33785603,3307.2,3305.6,0.1331055]
[1768697335308,1.26188499,3307.1,3305.7,1.11463601]
[1768697335509,0.28526391,3307.0,3305.7,1.11463601]
[1768697337020,0.28526391,3307.0,3305.8,0.13801493]
[1768697340815,0.28526391,3307.0,3305.8,1.11463601]
[1768697341114,0.28526391,3307.0,3305.9,0.13801493]
[1768697341411,0.97662108,3307.5,3306.2,0.13801493]
[1768697341614,1.33838952,3307.4,3306.3,0.97662108]
[1768697341917,0.28536825,3307.3,3306.4,0.13801493]
[1768697342116,0.00308133,3307.6,3306.4,0.13801493]
[1768697342117,0.28331351,3307.2,3306.4,0.13801493]
[1768697342312,0.00308133,3307.6,3306.5,1.11463601]
[1768697342513,0.2832552,3307.5,3306.6,0.13801493]
[1768697342811,0.2832552,3307.4,3306.6,0.13801493]
[1768697343011,0.00308133,3307.6,3306.6,0.13801493]
[1768697343212,0.28330096,3307.5,3306.6,0.13801493]
[1768697343419,0.28330096,3307.4,3306.6,0.13801493]
[1768697343613,0.00308133,3307.6,3306.6,0.13801493]
[1768697343813,0.28323256,3307.5,3306.6,0.13801493]
[1768697344010,0.28323256,3307.4,3306.6,0.13801493]
[1768697344321,0.00308133,3307.6,3306.6,0.13801493]
[1768697344510,0.28317749,3307.5,3306.6,0.13801493]
[1768697344810,0.28317749,3307.4,3306.6,0.13801493]
[1768697345006,0.00308133,3307.6,3306.6,0.13801493]
[1768697345220,0.28317753,3307.5,3306.6,0.13801493]
[1768697345421,0.00308133,3307.6,3306.6,0.13801493]
[1768697345621,0.28312915,3307.5,3306.6,0.13801493]
[1768697345822,0.00308133,3307.6,3306.6,0.13801493]
[1768697346019,0.28312891,3307.5,3306.6,0.13801493]
[1768697346319,0.00308133,3307.6,3306.6,0.13801493]
[1768697346522,0.28308537,3307.5,3306.6,0.13801493]
[1768697346723,0.00308133,3307.6,3306.6,0.13801493]
[1768697346925,0.2830854,3307.5,3306.6,0.13801493]
[1768697347223,0.00308133,3307.6,3306.6,0.13801493]
[1768697347408,0.28305284,3307.5,3306.6,0.13801493]
[1768697347613,0.00308133,3307.6,3306.6,0.13801493]
[1768697347821,0.28305259,3307.5,3306.6,0.13801493]
[1768697348121,0.00308133,3307.6,3306.6,0.13801493]
[1768697348323,0.28302493,3307.5,3306.6,0.13801493]
[1768697348520,0.00308133,3307.6,3306.6,0.13801493]
[1768697348721,0.28302493,3307.5,3306.6,0.13801493]
[1768697348926,0.00308133,3307.6,3306.6,0.13801493]
[1768697349223,0.28302731,3307.5,3306.6,0.13801493]
[1768697349426,0.00308133,3307.6,3306.6,0.13801493]
[1768697349721,0.28300931,3307.5,3306.6,0.13801493]
[1768697349923,0.00308133,3307.6,3306.6,0.13801493]
[1768697350120,0.28299924,3307.5,3306.6,0.13801493]
[1768697350317,0.00308133,3307.6,3306.6,0.13801493]
[1768697350930,0.00308133,3307.6,3306.7,0.97662108]
[1768697351122,0.00308133,3307.6,3306.9,0.97662108]
[1768697351322,0.00308133,3307.6,3306.9,0.97996709]
[1768697351725,0.13247758,3308.4,3306.9,0.97996709]
[1768697351726,1.83347758,3308.4,3307.1,0.97662108]
[1768697352029,1.33540453,3308.3,3307.1,0.97662108]
[1768697352226,1.33540453,3308.2,3307.1,0.97662108]
[1768697352428,1.33540453,3308.1,3307.1,0.97662108]
[1768697352618,0.28295727,3308.0,3307.1,0.97662108]
[1768697352817,0.00222966,3308.1,3307.1,0.97662108]
[1768697353020,0.28285184,3308.0,3307.1,1.11463601]
[1768697353326,0.00222966,3308.1,3307.1,1.11463601]
[1768697353526,0.28276576,3308.0,3307.1,1.11463601]
[1768697353725,0.00222966,3308.1,3307.1,1.11463601]
[1768697354027,0.28276588,3308.0,3307.1,1.11463601]
[1768697354228,0.00222966,3308.1,3307.1,1.11463601]
[1768697358632,0.00222966,3308.1,3307.1,0.13801493]
[1768697359522,0.97885074,3308.1,3307.1,0.13801493]
[1768697362527,0.97662108,3307.5,3306.9,0.00334601]
[1768697362922,0.97662108,3307.7,3306.9,0.00334601]
[1768697364834,0.97662108,3307.8,3306.9,0.00334601]
[1768697370545,0.97662108,3307.6,3306.9,0.00334601]
[1768697370733,0.97662108,3307.8,3306.9,0.00334601]
[1768697370935,0.00222966,3308.1,3306.9,0.00334601]
[1768697371143,0.28281706,3308.0,3306.9,0.00334601]
[1768697371337,0.28281706,3307.9,3306.9,0.00334601]
[1768697371639,0.00222966,3308.1,3306.9,0.00334601]
[1768697371841,0.28289435,3308.0,3306.9,0.00334601]
[1768697372141,0.00222966,3308.1,3306.9,0.00334601]
[1768697372335,0.28292056,3308.0,3306.9,0.00334601]
[1768697372539,0.00222966,3308.1,3306.9,0.00334601]
[1768697372728,0.28292057,3308.0,3306.9,0.00334601]
[1768697372932,0.00222966,3308.1,3306.9,0.00334601]
[1768697373132,0.28292062,3308.0,3306.9,0.00334601]
[1768697373342,0.00222966,3308.1,3306.9,0.00334601]
[1768697373644,0.28294595,3308.0,3306.9,0.97996709]
[1768697373841,0.00222966,3308.1,3306.9,0.97996709]
[1768697374042,0.28294592,3308.0,3306.9,0.97996709]
[1768697374240,0.00222966,3308.1,3306.9,0.97996709]
[1768697374443,0.28297446,3308.0,3306.9,0.97996709]
[1768697374644,0.00222966,3308.1,3306.9,1.12289078]
[1768697374843,0.28297569,3308.0,3306.9,1.12289078]
[1768697375043,0.00222966,3308.1,3306.9,1.12289078]
[1768697375338,0.2830077,3308.0,3306.9,1.12289078]
[1768697375541,0.00222966,3308.1,3307.0,0.14292369]
[1768697379147,0.28319061,3308.0,3307.0,0.14292369]
[1768697379347,0.00222966,3308.1,3307.2,0.14292369]
[1768697379946,0.00222966,3308.1,3307.4,0.97662108]
[1768697380137,0.00222966,3308.1,3307.2,1.11954477]
[1768697381448,0.00222966,3308.1,3307.2,0.14292369]
[1768697403358,1.7,3308.3,3307.2,0.14292369]
[1768697403559,1.85116,3308.9,3307.2,0.14292369]
[1768697403759,1.34064528,3308.8,3307.2,0.14292369]
[1768697403959,1.34064528,3308.7,3307.2,0.14292369]
[1768697404155,1.34064528,3308.6,3307.2,0.14292369]
[1768697404351,0.28314331,3308.5,3307.2,0.14292369]
[1768697404556,0.28314331,3308.4,3307.2,0.14292369]
[1768697404856,0.00371003,3308.6,3307.2,0.14292369]
[1768697405057,0.28314361,3308.5,3307.2,0.14292369]
[1768697405262,0.28314687,3308.4,3307.2,0.14292369]
[1768697405445,0.00371003,3308.6,3307.2,0.14292369]
[1768697405649,0.28314506,3308.5,3307.2,0.14292369]
[1768697405850,0.00371003,3308.6,3307.2,0.14292369]
[1768697406045,0.28315249,3308.5,3307.2,0.14292369]
[1768697406261,0.00371003,3308.6,3307.2,0.14292369]
[1768697406451,0.28311607,3308.5,3307.2,0.14292369]
[1768697406652,0.00371003,3308.6,3307.4,0.1396722]
[1768697406959,0.283116,3308.5,3307.4,0.1396722]
[1768697407158,0.00371003,3308.6,3307.4,0.1396722]
[1768697410973,0.00371003,3308.6,3307.0,0.1396722]
[1768697411166,0.28079552,3308.5,3307.0,0.1396722]
[1768697411464,0.00371003,3308.6,3307.0,0.1396722]
[1768697411465,0.2807847,3308.4,3307.0,0.1396722]
[1768697411660,0.2807847,3308.3,3307.0,0.1396722]
[1768697411862,0.00371003,3308.6,3307.0,0.1396722]
[1768697412052,1.33704945,3308.5,3307.0,0.1396722]
[1768697412252,0.28260944,3308.4,3307.0,0.1396722]
[1768697412466,0.28260944,3308.3,3307.0,0.1396722]
[1768697412667,0.00371003,3308.6,3307.0,0.1396722]
[1768697412868,1.33712426,3308.5,3307.0,0.1396722]
[1768697413166,0.28262581,3308.4,3307.0,0.1396722]
[1768697413364,0.28262581,3308.3,3307.0,0.1396722]
[1768697413567,0.00371003,3308.6,3307.0,0.1396722]
[1768697413767,1.33717172,3308.5,3307.0,0.1396722]
[1768697413963,0.28263595,3308.4,3307.0,0.1396722]
[1768697414166,0.28263595,3308.3,3307.0,0.1396722]
[1768697414353,0.00371003,3308.6,3307.0,0.1396722]
[1768697414558,1.33719549,3308.5,3307.0,0.1396722]
[1768697414758,0.28264105,3308.4,3307.0,0.1396722]
[1768697415065,0.28264105,3308.3,3307.0,0.1396722]
[1768697415264,0.00371003,3308.6,3307.0,0.1396722]
[1768697415460,1.33721785,3308.5,3307.0,0.1396722]
[1768697415669,0.28264587,3308.4,3307.0,0.1396722]
[1768697415864,0.28264587,3308.3,3307.0,0.1396722]
[1768697416068,0.00371003,3308.6,3307.0,0.1396722]
[1768697416270,1.33721321,3308.5,3307.0,0.1396722]
[1768697416469,0.28265397,3308.4,3307.0,0.1396722]
[1768697416667,0.4207581,3308.3,3306.9,0.00334601]
[1768697416875,0.28265397,3308.2,3306.9,0.14301821]
[1768697417069,0.00371003,3308.6,3306.9,0.14301821]
[1768697417263,1.33718006,3308.5,3306.9,0.14301821]
[1768697417463,1.33718006,3308.4,3306.9,0.14301821]
[1768697417665,0.28264502,3308.3,3306.9,0.14301821]
[1768697417864,0.28264502,3308.2,3306.9,0.14301821]
[1768697418068,0.00371003,3308.6,3306.9,0.14301821]
[1768697418374,0.28267108,3308.5,3306.9,0.14301821]
[1768697418576,0.00371003,3308.6,3306.9,0.14301821]
[1768697418773,0.28266737,3308.5,3306.9,0.14301821]
[1768697418968,0.00371003,3308.6,3306.9,0.14301821]
[1768697419168,0.28266811,3308.5,3306.9,0.14301821]
[1768697419473,0.00371003,3308.6,3306.9,0.14301821]
[1768697419667,0.28267086,3308.5,3306.9,0.14301821]
[1768697419869,0.00371003,3308.6,3306.9,0.14301821]
[1768697420068,0.2826703,3308.5,3306.9,0.14301821]
[1768697420269,0.00371003,3308.6,3307.3,0.1396722]
[1768697421663,0.00371003,3308.6,3307.4,0.1396722]
[1768697440900,0.97960874,3308.6,3307.4,0.1396722]
[1768697441098,0.00371003,3308.6,3307.4,0.1396722]
[1768697447011,0.28257896,3308.5,3306.9,0.14205974]
[1768697447211,0.28257896,3308.4,3306.9,0.14205974]
[1768697447511,0.28257896,3308.3,3306.9,0.14205974]
[1768697447717,0.97960874,3308.6,3306.9,0.14205974]
[1768697447912,1.33224507,3308.5,3306.9,0.14205974]
[1768697448112,0.28341478,3308.4,3306.9,0.14205974]
[1768697448410,0.28341478,3308.3,3306.9,0.14205974]
[1768697448617,0.97960874,3308.6,3306.9,0.14205974]
[1768697448815,1.33185433,3308.5,3306.9,0.14205974]
[1768697449017,0.28333374,3308.4,3306.9,0.14205974]
[1768697449314,0.28333374,3308.3,3306.9,0.14205974]
[1768697449612,0.97960874,3308.6,3306.9,0.14205974]
[1768697449814,1.33171774,3308.5,3306.9,0.14205974]
[1768697450013,0.28330418,3308.4,3306.9,0.14205974]
[1768697450312,0.28330418,3308.3,3306.9,0.14205974]
[1768697450514,0.97960874,3308.6,3306.9,0.14205974]
[1768697450714,1.33157285,3308.5,3306.9,0.14205974]
[1768697450914,0.2832737,3308.4,3306.9,0.14205974]
[1768697451115,0.2832737,3308.3,3306.9,0.14205974]
[1768697451311,0.13290086,3308.5,3306.9,0.14205974]
[1768697451513,0.28321479,3308.4,3306.9,0.14205974]
[1768697451709,0.28321479,3308.3,3306.9,0.14205974]
[1768697451910,0.28321479,3308.2,3306.9,0.14205974]
[1768697452212,0.13290086,3308.5,3306.9,0.14205974]
[1768697452412,0.28316638,3308.4,3306.9,0.14205974]
[1768697452711,0.97589871,3308.2,3306.9,0.14205974]
[1768697453818,0.97589871,3308.2,3306.9,0.00334601]
[1768697453819,0.28309185,3308.1,3306.9,0.00334601]
[1768697454021,0.97589871,3308.2,3306.9,0.00334601]
[1768697454213,0.28301098,3308.1,3306.9,0.00334601]
[1768697454415,0.97589871,3308.2,3306.9,0.00334601]
[1768697454614,0.28301123,3308.1,3306.9,0.00334601]
[1768697454815,0.97589871,3308.2,3306.9,0.00334601]
[1768697455015,0.28301077,3308.1,3306.9,0.00334601]
[1768697455215,0.97589871,3308.2,3306.9,0.00334601]
[1768697455523,0.28294371,3308.1,3306.9,0.00334601]
[1768697455821,0.97589871,3308.2,3306.9,0.00334601]
[1768697456022,0.2829435,3308.1,3306.9,0.00334601]
[1768697456220,0.97589871,3308.2,3306.9,0.00334601]
[1768697456422,0.28288968,3308.1,3306.9,0.00334601]
[1768697456620,1.1137076,3308.2,3306.9,0.00334601]
[1768697456813,0.28287207,3308.1,3306.9,0.00334601]
[1768697457312,0.97629543,3307.6,3306.9,0.00334601]
[1768697457712,0.13780889,3308.2,3306.9,0.00334601]
[1768697457908,0.97629543,3307.6,3306.9,0.00334601]
[1768697462525,0.97629543,3307.8,3306.9,0.00334601]
[1768697470634,0.97629543,3307.6,3306.9,0.00334601]
[1768697477451,0.97629543,3307.0,3306.0,0.13098924]
[1768697477954,0.97629543,3307.0,3305.6,0.91288522]
[1768697478143,0.97629543,3306.8,3305.6,0.91288522]
[1768697478542,0.97629543,3306.8,3305.6,0.91679432]
[1768697478744,1.305,3307.3,3305.7,1.10728467]
[1768697478945,0.97629543,3307.1,3305.7,1.10728467]
[1768697479550,0.97629543,3307.1,3305.8,0.13098924]
[1768697480350,0.97629543,3306.6,3305.6,0.0039091]
[1768697480548,0.97629543,3307.0,3305.6,1.11119377]
[1768697481252,0.97629543,3307.0,3305.7,0.13098924]
[1768697482049,0.97629543,3307.0,3305.6,0.98020453]
[1768697482050,0.97629543,3307.2,3305.8,1.11489389]
[1768697482749,0.13519575,3307.7,3306.4,0.97629543]
[1768697482955,0.28276788,3307.6,3306.4,0.97629543]
[1768697483144,0.28276788,3307.5,3306.4,0.97629543]
[1768697483346,0.97629543,3307.7,3306.5,0.13859846]
[1768697483550,0.28280401,3307.6,3306.5,0.13859846]
[1768697483753,0.97629543,3307.9,3306.5,0.13859846]
[1768697484056,0.28281233,3307.8,3306.6,1.11489389]
[1768697484254,0.97629543,3308.0,3306.6,1.11489389]
[1768697484552,0.28283916,3307.9,3306.6,1.11489389]
[1768697484748,0.97629543,3308.0,3306.6,1.11489389]
[1768697484749,0.28283916,3307.8,3306.6,1.11489389]
[1768697484952,0.97629543,3308.0,3306.6,1.11489389]
[1768697485150,0.97629543,3307.8,3306.6,0.13859846]
[1768697490061,0.97629543,3307.6,3306.2,0.97629543]
[1768697490357,0.97629543,3307.6,3306.2,1.11489389]
[1768697495254,0.97629543,3307.6,3306.2,0.13859846]
[1768697495954,0.97629543,3307.8,3306.3,0.97629543]
[1768697496258,0.28292306,3307.7,3306.4,0.13287162]
[1768697496450,0.97629543,3307.8,3306.4,0.13287162]
[1768697496647,0.28292995,3307.7,3306.4,0.13287162]
[1768697496958,0.97629543,3307.8,3306.4,0.13287162]
[1768697497259,0.28293037,3307.7,3306.5,0.97629543]
[1768697497458,0.97629543,3307.8,3306.5,1.10916705]
[1768697497659,0.28293803,3307.7,3306.5,1.10916705]
[1768697497858,0.97629543,3307.8,3306.5,1.10916705]
[1768697498062,0.28293787,3307.7,3306.5,1.10916705]
[1768697498362,0.97629543,3307.8,3306.5,1.10916705]
[1768697498562,0.28294623,3307.7,3306.5,1.10916705]
[1768697498858,0.97629543,3308.0,3306.5,1.10916705]
[1768697499059,1.3401299,3307.9,3306.5,1.10916705]
[1768697499259,0.28294605,3307.8,3306.5,1.10916705]
[1768697499458,0.28294605,3307.7,3306.5,1.10916705]
[1768697499659,0.97629543,3308.0,3306.5,1.10916705]
[1768697499962,1.34017525,3307.9,3306.5,1.10916705]
[1768697500164,0.28295554,3307.8,3306.5,1.10916705]
[1768697500461,0.28295554,3307.7,3306.5,1.10916705]
[1768697500659,0.97629543,3308.0,3306.5,1.10916705]
[1768697500854,1.34021432,3307.9,3306.5,1.10916705]
[1768697501051,0.28296285,3307.8,3306.5,1.10916705]
[1768697501256,0.28296285,3307.7,3306.5,1.10916705]
[1768697505568,0.97629543,3307.8,3306.6,0.13287162]
[1768697511174,1.83419575,3308.1,3306.6,0.13287162]
[1768697511374,2.31738136,3308.0,3306.6,0.13287162]
[1768697511577,1.3410865,3307.9,3306.6,0.13287162]
[1768697511771,0.28307515,3307.8,3306.6,0.13287162]
[1768697511965,0.97629543,3308.0,3306.6,0.13287162]
[1768697512167,1.34118339,3307.9,3306.6,0.13287162]
[1768697512367,0.28317192,3307.8,3306.6,0.13287162]
[1768697512571,0.28317192,3307.7,3306.6,0.13287162]
[1768697512771,0.97629543,3308.0,3306.6,0.13287162]
[1768697513069,1.34182175,3307.9,3306.6,0.13287162]
[1768697513270,0.28331457,3307.8,3306.6,0.13287162]
[1768697513472,0.28331457,3307.7,3306.6,0.13287162]
[1768697513670,0.97629543,3308.0,3306.6,0.13287162]
[1768697513877,1.34200996,3307.9,3306.6,0.13287162]
[1768697514180,0.28333642,3307.8,3306.6,0.13287162]
[1768697514368,0.28333642,3307.7,3306.6,0.13287162]
[1768697514571,0.97629543,3308.0,3306.6,0.13287162]
[1768697514870,1.34197679,3307.9,3306.6,0.13287162]
[1768697515069,0.28332937,3307.8,3306.6,0.13287162]
[1768697515269,0.28332937,3307.7,3306.6,0.13287162]
[1768697515470,0.97629543,3308.0,3306.6,0.13287162]
[1768697515670,1.34194842,3307.9,3306.6,0.13287162]
[1768697515870,0.28332334,3307.8,3306.6,0.13287162]
[1768697516072,0.28332334,3307.7,3306.6,0.13287162]
[1768697516275,0.97629543,3308.0,3306.6,0.13287162]
[1768697516579,1.34192769,3307.9,3306.6,0.13287162]
[1768697516778,0.28331894,3307.8,3306.6,0.13287162]
[1768697516980,0.28331894,3307.7,3306.6,0.13287162]
[1768697517278,1.83419575,3308.1,3306.6,0.13287162]
[1768697517279,1.699,3308.1,3306.8,0.97629543]
[1768697517470,1.34194083,3308.0,3306.8,0.97629543]
[1768697517670,0.28331558,3307.9,3306.8,0.97629543]
[1768697517869,0.28331558,3307.8,3306.8,0.97629543]
[1768697518070,1.699,3308.1,3306.8,0.97629543]
[1768697518270,1.34193724,3308.0,3306.8,0.97629543]
[1768697518570,0.28331196,3307.9,3306.8,0.97629543]
[1768697518769,0.28331196,3307.8,3306.8,0.97629543]
[1768697518969,1.699,3308.1,3306.8,0.97629543]
[1768697519169,1.33975538,3308.0,3306.8,0.97629543]
[1768697519375,0.28118478,3307.9,3306.6,0.13287162]
[1768697519574,0.28118478,3307.8,3306.6,0.13287162]
[1768697519773,1.699,3308.1,3306.6,0.13287162]
[1768697519974,0.28117933,3308.0,3306.7,0.13289156]
[1768697520173,1.699,3308.1,3306.7,0.13289156]
[1768697520371,0.28118415,3308.0,3306.7,0.13289156]
[1768697520568,1.699,3308.1,3306.7,0.13289156]
[1768697520781,0.28118288,3308.0,3306.7,0.13289156]
[1768697520978,1.699,3308.1,3306.7,0.13289156]
[1768697521181,0.28118293,3308.0,3306.7,0.13289156]
[1768697521382,1.699,3308.1,3306.7,0.13289156]
[1768697521679,0.28110671,3308.0,3306.7,0.13289156]
[1768697521873,1.699,3308.1,3306.7,0.13289156]
[1768697522073,0.28110674,3308.0,3306.7,0.13289156]
[1768697522273,1.699,3308.1,3306.7,0.13289156]
[1768697522476,0.28107687,3308.0,3306.7,0.13289156]
[1768697522677,1.699,3308.1,3306.7,0.13289156]
[1768697522878,0.28107662,3308.0,3306.7,0.13289156]
[1768697523077,1.699,3308.1,3306.7,0.13289156]
[1768697523278,0.28105264,3308.0,3306.7,0.13289156]
[1768697523482,1.699,3308.1,3306.7,0.13289156]
[1768697523678,0.28105492,3308.0,3306.7,0.13289156]
[1768697523879,1.699,3308.1,3306.7,0.13289156]
[1768697524483,0.28103398,3308.0,3306.2,0.13289156]
[1768697524682,0.13006179,3307.7,3305.8,0.28419156]
[1768697524876,0.13006179,3307.5,3305.8,0.28419156]
[1768697525277,0.97602967,3307.8,3305.9,0.13289156]
[1768697525482,0.28100283,3307.7,3305.9,0.13289156]
[1768697525684,0.28100283,3307.6,3305.9,0.13289156]
[1768697525885,0.97602967,3307.8,3305.9,0.13289156]
[1768697526087,0.28100288,3307.7,3305.9,0.13289156]
[1768697526382,0.97602967,3307.8,3305.9,0.13289156]
[1768697526383,0.28100288,3307.6,3305.9,0.13289156]